Cogmind - Beta 15 @@@ ROGUE MODE // 2025.07.27 @ 02:47:33 Player: COGMINDER69 Result: Destroyed by G-34 Mercenary with Small Laser Performance ------------- Evolutions (0) 0 Regions Visited (2) 400 Robots Destroyed (46) 230 Value Destroyed (979) 979 Prototype IDs (2) 40 Alien Tech Used (0) 0 Bonus (35) 35 TOTAL SCORE: 1684 Bonus ------- Follower Combat Kills 35 Cogmind --------- Core Integrity 0/250 Matter 298/300 Energy 250/250 System Corruption 1% Temperature Cool (12) Movement Walking (190) Ox1 Location -10/Mines Parts ------- > --- POWER (1) -------- Ion Engine > --- PROPULSION (2) --- Aluminum Leg Aluminum Leg > --- UTILITY (2) ------ Large Storage Unit Tractor Beam > --- WEAPON (2) ------- Light Assault Rifle Light Assault Rifle > --- INVENTORY (15) --- Ion Engine Aluminum Leg Aluminum Leg Flight Unit Flight Unit Flight Unit Structural Scanner Improved Terrain Scanner Small Laser Small Laser Grenade Launcher Rocket Launcher Hammer Signal Generator Peak State ------------ > --- POWER ------------ Ion Engine > --- PROPULSION ------- Light Treads Light Treads > --- UTILITY ---------- Improved Heat Sink Small Storage Unit > --- WEAPON ----------- Particle Gun Assault Rifle > --- INVENTORY -------- Ion Engine Aluminum Leg Aluminum Leg EM Pulse Gun Light Assault Rifle Grenade Launcher [Rating: 10] Favorites ----------- Power Ion Engine Engine Ion Engine Propulsion Light Treads Treads Light Treads Leg Aluminum Leg Utility Large Storage Unit Device Tractor Beam Storage Large Storage Unit Processor Transport Network Coupler Weapon Assault Rifle Energy Gun Particle Gun Ballistic Gun Assault Rifle Launcher Grenade Launcher Impact Weapon Hammer Build | -11 -10 -10 ------- Run | Yrd Mat Min Slots Evolved . | . . . Power . | . . . Propulsion . | . . . Utility . | . . . Weapon . | . . . Parts Attached 24 | 6 5 13 Power 2 | 1 . 1 Engine 2 | 1 . 1 Core . | . . . Reactor . | . . . Propulsion 6 | 2 . 4 Treads 3 | 2 . 1 Leg 3 | . . 3 Wheel . | . . . Hover . | . . . Flight . | . . . Utility 6 | 1 4 1 Device 3 | . 2 1 Storage 2 | 1 1 . Processor 1 | . 1 . Hackware . | . . . Protection . | . . . Artifact . | . . . Weapon 10 | 2 1 7 Energy Gun 4 | 1 1 2 Energy Cannon . | . . . Ballistic Gun 4 | 1 . 3 Ballistic Cannon . | . . . Launcher 1 | . . 1 Special Weapon . | . . . Impact Weapon 1 | . . 1 Slashing Weapon . | . . . Piercing Weapon . | . . . Special Melee Weapon . | . . . Unidentified Prototypes . | . . . Parts Lost 7 | . . 7 Power 1 | . . 1 Propulsion 2 | . . 2 Utility 1 | . . 1 Weapon 3 | . . 3 Highest Loss Streak 4 | . . 4 To Critical Strikes . | . . . Average Backups 8 | 2 7 8 Power . | . 1 . Propulsion 3 | 1 3 3 Utility . | . . 1 Weapon 3 | . 3 3 Tool/Special . | . . . Unused Backups 12 | . 3 9 Power 1 | . . 1 Propulsion 7 | . 2 5 Utility 2 | . . 2 Weapon 2 | . 1 1 Tool/Special . | . . . Average Slot Usage (%) 98 | . 98 99 Engine 13 | . 14 13 Treads 18 | . 28 12 Leg 9 | . . 15 Device 10 | . 6 13 Storage 14 | . 14 14 Processor 2 | . 6 . Energy Gun 6 | . 14 1 Ballistic Gun 18 | . 14 21 Impact Weapon 2 | . . 4 Peak Build Rating 10 | 6 10 9 Average Rating 7 | 4 8 7 On Entrance 4 | . 6 8 Naked Turns . | . . . Heaviest Build 31 | 14 31 31 Greatest Support 40 | 40 40 40 Greatest Overweight (x) 2 | . . 2 Average Overweight (x) . | . . . Largest Inventory Capacity 15 | 8 15 15 Average Capacity 13 | 7 10 15 Most Carried 14 | 4 10 14 Average Carried 8 | 3 7 8 Final Capacity 15 | 8 15 15 Final Carried 14 | 4 8 14 Class Distribution -------------------- 67% | Mutant 32% | Scavenger-Mutant Dominant Class ---------------- Mutant | -10/Materials Scavenger-Mutant | -10/Mines Resources | -11 -10 -10 ----------- Run | Yrd Mat Min Matter Collected 945 | 269 166 510 Remotely 503 | . 25 478 Salvage Created 1322 | 69 511 742 Parts 102 | 1 45 56 Haulers Intercepted 2 | . 2 . Recyclers Shooed . | . . . Parts Field Recycled . | . . . Retrieved Matter . | . . . Parts Self-Destructed . | . . . Prevented . | . . . Kills | -11 -10 -10 ------- Run | Yrd Mat Min Combat Hostiles Destroyed 35 | . 13 22 Guns 25 | . 13 12 AOE 9 | . . 9 Classes Destroyed 8 | 1 5 2 Builder 3 | . 3 . Tunneler 4 | . . 4 Hauler 2 | . 2 . Recycler 1 | 1 . . Watcher 2 | . 2 . Swarmer 12 | . 9 3 Grunt 22 | . 4 18 Assembled 1 | . . 1 Best Kill Streak 8 | 1 6 8 Combat Bots Only 5 | . 5 5 Max Kills in Single Turn 3 | 1 2 3 Gunslinging 1 | . 1 . Exploded 2 | . . 2 Melee . | . . . Uniques/NPCs Destroyed . | . . . Combat | -11 -10 -10 -------- Run | Yrd Mat Min Hostile Shots Fired 130 | . 31 99 Missed 37 | . 7 30 Hits 93 | . 24 69 Projectile 93 | . 24 69 Critical Strikes 2 | . . 2 Part Disruptions 1 | . . 1 Damage Taken 1074 | . 234 840 Core 252 | . 42 210 Absorbed by Shields . | . . . Core Remaining (%) 100 | 100 . . Volleys Fired 100 | 3 40 57 Largest 2 | 2 2 2 Hottest 85 | 60 85 85 Shots Fired 195 | 6 80 109 Gun 187 | 6 80 101 Cannon . | . . . Launcher 8 | . . 8 Special . | . . . Kinetic 129 | 3 40 86 Thermal 41 | . 33 8 Explosive 8 | . . 8 Electromagnetic 17 | 3 7 7 Robot Hit Streak 20 | 2 15 20 Robot Miss Streak 3 | 1 3 3 Penetration Max . | . . . Secondary Targets 3 | . 2 1 Max Gunslinging Chain 1 | . 1 1 Shots Hit Robots 124 | 4 52 68 Core Hits 69 | 2 24 43 Critical Kills . | . . . Critical Parts Destroyed 2 | . 1 1 Critical Strikes 3 | . 2 1 Burn 1 | . 1 . Destroy 1 | . 1 . Smash 1 | . . 1 Melee Attacks 4 | . . 4 Impact 4 | . . 4 Slashing . | . . . Piercing . | . . . Sneak Attacks . | . . . Combat Hostiles . | . . . Follow-up Attacks . | . . . Damage Inflicted 2239 | 47 756 1436 Guns 1607 | 47 751 809 Cannons . | . . . Explosions 596 | . . 596 Melee 28 | . . 28 Ramming 8 | . 5 3 Kinetic 1000 | 23 309 668 Thermal 451 | . 372 79 Explosive 596 | . . 596 Electromagnetic 156 | 24 70 62 Impact 28 | . . 28 Slashing . | . . . Piercing . | . . . Highest Corruption 1 | . 1 1 Average Corruption 1 | . 1 1 Corruption Purged . | . . . Corruption Blocked . | . . . Effects 15 | . 4 11 Message Errors 7 | . 1 6 Heat Flow Errors 1 | . . 1 Energy Discharges 4 | . 1 3 Parts Fused 1 | . 1 . Data Loss (minor) 2 | . 1 1 Overload Shots . | . . . Overflow Damage 29 | . . 29 Projectiles . | . . . Explosions 1 | . . 1 Melee 28 | . . 28 Knockbacks 1 | . . 1 Impact 1 | . . 1 Kinetic . | . . . Secondary . | . . . Self-Inflicted Damage 29 | . . 29 Shots 1 | . . 1 Rammed 2 | . 2 . Targets Rammed 4 | . 2 2 Kicked 2 | . . 2 Crushed . | . . . Highest Temperature 309 | . 72 309 Average Temperature 61 | . 23 84 Received Heat Transfer 576 | . 69 507 Effects 1 | . . 1 Interference 1 | . . 1 Siege Activations . | . . . Martial Activations . | . . . Shielding Activations . | . . . Robots Disrupted . | . . . Combat Hostiles . | . . . Robots Corrupted 1 | . . 1 Combat Hostiles 1 | . . 1 Parts Fried 1 | . . 1 Impact Corruptions 1 | . . 1 Robots Melted . | . . . Combat Hostiles . | . . . Parts Melted . | . . . Heat Transferred 1147 | . 962 185 Parts Sabotaged . | . . . Parts Stolen . | . . . Parts Stripped . | . . . Power Chain Reactions . | . . . Alert | -11 -10 -10 ------- Run | Yrd Mat Min Maximum Alert Level 1 | . . 1 Low Security (%) 96 | 100 100 93 Level 1 3 | . . 6 Level 2 . | . . . Level 3 . | . . . Level 4 . | . . . Level 5 . | . . . High Security . | . . . Max Security . | . . . Peak Influence 241 | . 156 241 Initial 3 | . . 3 Average 79 | . 52 99 Influence Increases 966 | 5 378 583 Destroy 0b10 Robot/C 700 | . 260 440 Destroy 0b10 Robot/NC 60 | 5 35 20 Destroy Leader 78 | . 48 30 Allied During Kill 2 | . . 2 Successful Hack 28 | . 19 9 Destroy Structure 38 | . 1 37 Lose Combat Pursuer 60 | . 15 45 Influence Decreases 804 | 5 369 430 Entered New Map 6 | . . 6 Time Decay 708 | 5 369 334 Lost Part 70 | . . 70 Lost Ally 20 | . . 20 Squads Dispatched 1 | . . 1 Investigation . | . . . Extermination . | . . . Reinforcement . | . . . Assault 1 | . . 1 Garrison . | . . . Intercept . | . . . Searches Triggered . | . . . Construction Impeded . | . . . Haulers Reinforced . | . . . Active Scanning Responses . | . . . Cargo Convoy Interrupts . | . . . Stealth | -11 -10 -10 --------- Run | Yrd Mat Min Distress Signals 3 | . 2 1 Communications Jammed . | . . . Distress Signals . | . . . Times Spotted 50 | . 23 27 Peak Tracking Total 6 | . 6 4 Tactical Retreats 2 | . 1 1 Traps | -11 -10 -10 ------- Run | Yrd Mat Min Traps Triggered 1 | . 1 . Indirectly . | . . . Trap Hack Attempts . | . . . Triggered . | . . . Disarmed . | . . . Reprogrammed . | . . . Reused . | . . . Traps Extracted . | . . . Installed . | . . . Triggered . | . . . Machines | -11 -10 -10 ---------- Run | Yrd Mat Min Machines Disabled . | . . . Max in Single Turn . | . . . Machines Repaired . | . . . Machines Dismantled . | . . . Machines Sabotaged . | . . . Overloaded Fab Kills . | . . . Hacking | -11 -10 -10 --------- Run | Yrd Mat Min Machines Accessed 10 | . 9 1 Terminals 8 | . 7 1 Fabricators . | . . . Repair Stations . | . . . Recycling Units 2 | . 2 . Scanalyzers . | . . . Garrison Access . | . . . Total Hacks 28 | . 25 3 Successful 14 | . 13 1 Failed 14 | . 12 2 Catastrophic 2 | . 1 1 Database Lockouts . | . . . Manual 22 | . 19 3 Terminals 26 | . 23 3 Fabricators . | . . . Repair Stations . | . . . Recycling Units 2 | . 2 . Scanalyzers . | . . . Garrison Access . | . . . Terminal Hacks 5 | . 4 1 Part Schematic 1 | . 1 . Prototype ID Bank 1 | . 1 . Locate Traps 1 | . 1 . Recall Reinforcements 1 | . . 1 Zone Layout 1 | . 1 . Fabricator Hacks . | . . . Repair Station Hacks . | . . . Recycling Unit Hacks 2 | . 2 . Report Inventory 2 | . 2 . Scanalyzer . | . . . Garrison Access Hacks . | . . . Unauthorized Hacks 7 | . 7 . Terminals 7 | . 7 . Botnet 6 | . 6 . Operators 1 | . 1 . Fabricators . | . . . Repair Stations . | . . . Recycling Units . | . . . Scanalyzers . | . . . Garrison Access . | . . . Data Cores Recovered . | . . . Used . | . . . Hacking Detections 8 | . 7 1 Full Trace Events 1 | . 1 . Feedback Events . | . . . Feedback Blocked . | . . . Robot Schematics Acquired . | . . . Robots Built . | . . . Authchips . | . . . Time . | . . . Total Robot Build Rating . | . . . Part Schematics Acquired 1 | . 1 . Parts Built . | . . . Authchips . | . . . Time . | . . . Total Part Build Rating . | . . . Parts Repaired . | . . . Time . | . . . Parts Recycled . | . . . Recycled Matter . | . . . Retrieved Matter . | . . . Retrieved Components . | . . . Parts Scanalyzed . | . . . Part Schematics Acquired . | . . . Parts Damaged . | . . . Bothacking | -11 -10 -10 ------------ Run | Yrd Mat Min Used RIF Installer . | . . . Robots Hacked . | . . . Non-combat . | . . . Combat . | . . . Robot Hacks Applied . | . . . Relay Couplers Released . | . . . Fabnet Peak Effective % . | . . . Robots Rewired . | . . . Allies Hacked . | . . . Hacks Repelled . | . . . Allies | -11 -10 -10 -------- Run | Yrd Mat Min Total Allies 1 | . . 1 Largest Group 1 | . . 1 Highest-Rated Group 31 | . . 31 Highest-Rated Ally 31 | . . 31 Total Orders . | . . . Ally Attacks 14 | . . 14 Total Damage 248 | . . 248 Kills 1 | . . 1 Allies Corrupted . | . . . Allies Melted . | . . . Intel | -11 -10 -10 ------- Run | Yrd Mat Min Active Infowar (turns) 603 | . 603 . T.N.C. 603 | . 603 . Robot Analysis Total . | . . . Derelict Logs Recovered 2 | . . 2 Drone Launches . | . . . Drone Recoveries . | . . . Exploration | -11 -10 -10 ------------- Run | Yrd Mat Min Turns Passed 3333 | 81 1283 1969 Spaces Moved 1356 | 38 686 632 Core 1 | 1 . . Treads 827 | 37 686 104 Legs 528 | . . 528 Wheels . | . . . Hover . | . . . Flight . | . . . Fastest Speed 50 | 50 160 160 Average Speed 174 | 157 160 190 Slowest Speed 260 | 160 160 260 Overloaded Moves . | . . . Propulsion Burnouts . | . . . Robots Hopped . | . . . Potential Cave-ins . | . . . Cave-ins Triggered . | . . . Exploration Rate (%) 63 | 3 94 93 Regions Visited 2 Branch Regions 1 Pre-discovered Areas 2 | . . 2 Known Exits Taken . | . . . Unknown Exits Taken 2 | 1 1 . Scrap Searched 1 | . . 1 Spaces Dug 2 | . . 2 Terrain Destroyed 55 | . . 55 Melee 2 | . . 2 Projectile . | . . . AOE 53 | . . 53 Terrain Rammed . | . . . Walls Destroyed . | . . . Machines Disabled . | . . . Actions | -11 -10 -10 --------- Run | Yrd Mat Min Total 2124 | 51 791 1282 Wait 594 | . 46 548 Move 1354 | 37 685 632 Hop . | . . . Pick Up 21 | 5 7 9 Fast Attach 14 | 5 3 6 Attach 9 | 1 . 8 Detach 6 | . 1 5 Swap 10 | . 2 8 Drop 8 | . 5 3 Fire 100 | 3 40 57 Melee 4 | . . 4 Ram . | . . . Kick 2 | . . 2 Crush 2 | . 2 . Escape Stasis . | . . . Rewire . | . . . Trap . | . . . Miscellaneous . | . . . Route ------- -11/Scrapyard -10/Materials (discovered 6 exits: [*Mat x3] / *Min x2 / [*Sub]) -10/Mines (discovered 2 exits: [*Mat x2]) History --------- Turn | Location | Event 17 | -11/Scrapyard | Discovered new exit (range 16) 82 | -11/Scrapyard | Entered Materials 305 | -10/Materials | Build established: Mutant 322 | -10/Materials | Discovered new exit (range 7) 377 | -10/Materials | Discovered new exit (range 5) 507 | -10/Materials | Discovered new exit (range 16) 694 | -10/Materials | Discovered new exit (range 16) 1238 | -10/Materials | Discovered new exit (range 7) 1289 | -10/Materials | Discovered new exit (range 4) 1365 | -10/Materials | Entered Mines 1403 | -10/Mines | Core integrity fell below 50% 1453 | -10/Mines | Excavation squad dispatched 1453 | -10/Mines | A large section of the Mines collapsed 1703 | -10/Mines | Excavation squad dispatched 1953 | -10/Mines | Excavation squad dispatched 2203 | -10/Mines | Excavation squad dispatched 2321 | -10/Mines | Lost 4 parts (1u3w) 2393 | -10/Mines | Core integrity fell below 20% 2447 | -10/Mines | Discovered new exit (range 14) 2515 | -10/Mines | Discovered new exit (range 8) 2573 | -10/Mines | Build established: Scavenger-Mutant 2869 | -10/Mines | Learned location of Storage (-8) 2932 | -10/Mines | Met a Derelict testing a Signal Generator 2949 | -10/Mines | Found Signal Generator 3203 | -10/Mines | Received a Rocket Launcher from a helpful Derelict 3297 | -10/Mines | Learned location of Zion (-6) 3334 | -10/Mines | Destroyed by G-34 Mercenary with Small Laser Last Messages --------------- GP-65L(g): "Need to get rid of a swarm? Done. Need a big hole in the wall? Done." GP-65L(g): "Need a small hole in the wall? Leave that to the mining laser wimps, I say!" GP-65L(g): "Would you like a rocket launcher? I know I would if I were you, so I'm going to lend you mine." GP-65L(g) slips back into the shadows. Acquired Rocket Launcher. G-34 Mercenary destroyed. Acquired 6 matter. Acquired 2 matter. System corrupted: Energy discharge (-85). K-01 Serf collects debris. Acquired 2 matter. G-34 Mercenary destroyed. K-01 Serf collects debris. Acquired 2 matter. K-01 Serf collects debris. Acquired derelict log, extracted data. World map updated: -6/Zion. Map ----- +----------------------------------------------------+ | | | | | ??????????????????????????????????????????????? | | ??????????????????????????????????????????????? | | ??????????????####????????????????????????????? | | ?????????????## ##???????????????????????????? | | ????????????## ##??????????????????????????? | | #???????????# #??????????????????????????? | | #####???????# #????????? ??????????????? | | ##??????## ##????????? ?????????????? | | ######??## ##?????????? ??????????????? | | #???## #??????????? ??????????????? | | ##### #?#### #??????????? ??????????????? | | ##???# #?# #??????????# ??????????????? | | ##???# #?# ####????###?## ???????????????? | | ##??# ### #??????## ## ???????????????? | | #### #?????## ????????????????? | | ##### #?????# ????????????????? | | ### ##### ##????# #????????????????? | | ## "#?????# #????????????????? | | ##### ######%#????## #????????????????? | | ##???# #????? #???## #????????????????? | | ###### #????? ????# ##???????????????? | | #???? ????# g ###?????????????? | | #######???? ??# ## ##????????????? | | #?????????? ???#@ #????????????? | | #?????????? ?????## #????????????? | | ###?????????? ???????# ##????????????? | | ????????????? """ #???# ###?????????????? | | ????????????? """ #???## #???????????????? | | #??????????## """ ?????#### ######??????????? | | ##?????????# ?????????# #??????????? | | #????????? ??????????# m#### #####??????? | | #????????? ???????????# #?# #??????? | | #????????? #???????????###k#?##### #??????? | | ##????????# #?????????????#t#????## ##?????? | | ##???????# #?????????????# #???## ##????? | | #??###### #?????????????# ##### ##???? | | #?## ##% #?????????????# %* ##??? | | #?# !! ##?????????????#####% #??? | | #?# #??????????????????# #??? | | #?# #????????#####????## ## #??? | | ##?## ########### ##???# ### ##?? | | ##???# # ## =# ## ##??# ###?## #?? | | ###### # ########## #??# #????## #? | | # =%*! ! * ! #??# #?????# #? | | =* # *! *= | " #??# #?????## ##? | | ####################== =!##?## ####???####?? | | ##?????????###### ##! = %##?## ##???????? | | #???????????????#### !#### #???????? | +----------------------------------------------------+ Best States ------------- Heat Dissipation 39 Energy Generation 10 Energy Capacity 250 Matter Stores 300 Matter Capacity 300 Sight Range 16 Terrain Scan Density 10 Evasion (%) 40 Recoil Reduction 2 Item Schematics ----------------- Lgt. Armor Plating | -10/Materials | Hacked Robot Schematics ------------------ None Fabricated ------------ Nothing Repaired ---------- Nothing Alien Tech Used ----------------- None Achievements -------------- None Challenges ------------ None Game ------ Seed HackingTripodRedistributor Manual? 0 Play Time 00:24:14 Cumulative 19.9 hours Start 2025.07.27 @ 02:20:34 End 2025.07.27 @ 02:47:33 Sessions 1 Manual Loads 0 Difficulty Rogue Special Mode None Game No. 28 Rogue 28 Adventurer 0 Explorer 0 Win Type - Total 0 Types 0/0/0/0/0/0/0/0/0/0 Lore% 9 Gallery% 18 Achievement% 21 Wizard Run 0 Options --------- Layout 0 ASCII 0 Keyboard 0 Movement Mouse Keybinds 0 Fullscreen 2 Font 24/Smallcaps Map View 76x50 Zoom Use 0% Tactical HUD 0 Map Filters NONE Filters NONE Steam 1 RUN: 43cd7f21-2698-4ac9-a702-9de5890d257d